{"text_format":"1","workbook":"xlsx","n_sheets":6,"sheets":["Erfassung","Art-Bereich-Tage","Liste","Unfallart","Ausfalltage","Betriebsbereiche"],"not_rendered":{"charts":6,"images":0,"macros":1,"external_links":0,"defined_names":0,"comments":0,"pivot_tables":0},"unopened":[{"sheet":"Unfallart","index":3,"reason":"not_a_worksheet"},{"sheet":"Ausfalltage","index":4,"reason":"not_a_worksheet"},{"sheet":"Betriebsbereiche","index":5,"reason":"not_a_worksheet"}],"bounds":{"document_bytes":16777216,"sheet_cells":100000,"rows_first":2000,"rows_last":500,"rows_between":2000,"halvings":0,"cell_chars":16384,"cell_head_chars":4096},"cells_cut":0,"cells_raw":0,"read":"whole","date_system":"1900"}

{"sheet":"Erfassung","index":0,"n_rows":9,"n_cols":6,"rows_kept":9,"cut":false,"hidden":false,"merged":[]}
["Erfassung der Unfalldaten bei betrieblichen Tätigkeiten"]
[]
["Datum:",null,"2002-12-17"]
[]
["Unfallursache:",null,0,"tödlich*:"]
[]
["Ausfalltage:",null,0,null,null,"* für einen tödlichen Unfall werden "]
[null,null,null,null,null,"   30 Ausfalltage angenommen"]
["Betriebsbereich:",null,0]

{"sheet":"Art-Bereich-Tage","index":1,"n_rows":51,"n_cols":8,"rows_kept":51,"cut":false,"hidden":false,"merged":[]}
["Unfallart","Ausfalltage","Beitriebsbereich","Tag","Monat","Jahr","toedlich","2024-03-08"]
["Absturz","1 Tag","Verwaltung",1,"Januar",1980,"nein",0]
["Brand und Explosion","2 Tage","Bauhof",{"$f":"D2+1","v":2},"Februar",{"$f":"F2+1","v":1981},"ja",0]
["Gefahrstoffe","3 Tage","Fuhrpark",{"$f":"D3+1","v":3},"März",{"$f":"F3+1","v":1982},null,0]
["Elektrische Anlagen","4 Tage","Baustelle",4,"April",1983,null,1]
["Erfasst und getroffen werden","5 Tage","Lager",5,"Mai",1984]
["Spitze, scharfkantige Gegenstände","6 Tage","Objekt",6,"Juni",1985]
["Stolpern / Rutschen / Stürzen","7 Tage",null,7,"Juli",1986]
["Ungeschützt bewegte Maschinenteile","8 bis 14 Tage",null,8,"August",1987]
["Unkontrolliert bewegte Teile","15 bis 30 Tage",null,9,"September",1988]
[null,"31-42 Tage",null,10,"Oktober",1989]
[null,"über 6 Wochen",null,11,"November",1990]
[null,null,null,12,"Dezember",1991]
[null,null,null,13,null,1992]
[null,null,null,14,null,1993]
[null,null,null,15,null,1994]
[null,null,null,16,null,1995]
[null,null,null,17,null,1996]
[null,null,null,18,null,1997]
[null,null,null,19,null,1998]
[null,null,null,20,null,1999]
[null,null,null,21,null,2000]
[null,null,null,22,null,2001]
[null,null,null,23,null,2002]
[null,null,null,24,null,2003]
[null,null,null,25,null,2004]
[null,null,null,26,null,2005]
[null,null,null,27,null,2006]
[null,null,null,28,null,2007]
[null,null,null,29,null,2008]
[null,null,null,30,null,2009]
[null,null,null,31,null,{"$f":"F31+1","v":2010}]
[null,null,null,null,null,2011]
[null,null,null,null,null,2012]
[null,null,null,null,null,2013]
[null,null,null,null,null,2014]
[null,null,null,null,null,2015]
[null,null,null,null,null,2016]
[null,null,null,null,null,2017]
[null,null,null,null,null,2018]
[null,null,null,null,null,2019]
[null,null,null,null,null,2020]
[null,null,null,null,null,2021]
[null,null,null,null,null,2022]
[null,null,null,null,null,2023]
[null,null,null,null,null,2024]
[null,null,null,null,null,2025]
[null,null,null,null,null,2026]
[null,null,null,null,null,2027]
[null,null,null,null,null,2028]
[null,null,null,null,null,2029]

{"sheet":"Liste","index":2,"n_rows":38,"n_cols":15,"rows_kept":38,"cut":false,"hidden":false,"merged":[]}
["Datum","Unfallart","Ausfalltage","Betriebsbereich","tödlich"]
[null,null,null,null,null,null,null,null,null,null,null,2018,-1,-1]
[null,null,null,null,null,null,null,null,null,null,"Absturz",{"$f":"COUNTIF(B4:B11,K3)","v":0},{"$f":"COUNTIF(B4:B8,K3)","v":0},{"$f":"COUNTIF(B173:B213,K3)","v":0}]
[null,null,null,null,null,null,null,null,null,null,"Brand und Explosion",{"$f":"COUNTIF(B4:B11,K4)","v":0},{"$f":"COUNTIF(B4:B8,K4)","v":0},{"$f":"COUNTIF(B173:B213,K4)","v":0}]
[null,null,null,null,null,null,null,null,null,null,"Gefahrstoffe",{"$f":"COUNTIF(B4:B11,K5)","v":0},{"$f":"COUNTIF(B4:B8,K5)","v":0},{"$f":"COUNTIF(B173:B213,K5)","v":0}]
[null,null,null,null,null,null,null,null,null,null,"Elektrische Anlagen",{"$f":"COUNTIF(B4:B11,K6)","v":0},{"$f":"COUNTIF(B4:B8,K6)","v":0},{"$f":"COUNTIF(B173:B213,K6)","v":0}]
[null,null,null,null,null,null,null,null,null,null,"Erfasst und getroffen werden",{"$f":"COUNTIF(B4:B11,K7)","v":0},{"$f":"COUNTIF(B4:B8,K7)","v":0},{"$f":"COUNTIF(B173:B213,K7)","v":0}]
[null,null,null,null,null,null,null,null,null,null,"Spitze, scharfkantige Gegenstände",{"$f":"COUNTIF(B4:B11,K8)","v":0},{"$f":"COUNTIF(B4:B8,K8)","v":0},{"$f":"COUNTIF(B173:B213,K8)","v":0}]
[null,null,null,null,null,null,null,null,null,null,"Stolpern / Rutschen / Stürzen",{"$f":"COUNTIF(B4:B11,K9)","v":0},{"$f":"COUNTIF(B4:B8,K9)","v":0},{"$f":"COUNTIF(B173:B213,K9)","v":0}]
[null,null,null,null,null,null,null,null,null,null,"Ungeschützt bewegte Maschinenteile",{"$f":"COUNTIF(B4:B11,K10)","v":0},{"$f":"COUNTIF(B4:B8,K10)","v":0},{"$f":"COUNTIF(B173:B213,K10)","v":0}]
[null,null,null,null,null,null,null,null,null,null,"Unkontrolliert bewegte Teile",{"$f":"COUNTIF(B4:B11,K11)","v":0},{"$f":"COUNTIF(B4:B8,K11)","v":0},{"$f":"COUNTIF(B174:B214,K11)","v":0}]
[null,null,null,null,null,null,null,null,null,null,null,{"$f":"SUM(L3:L11)","v":0},{"$f":"SUM(M3:M11)","v":0},{"$f":"SUM(N3:N11)","v":0},{"$f":"SUMIF(L2:N2,\">0\",L12:N12)","v":0}]
[]
[]
[null,null,null,null,null,null,null,null,null,null,null,2018,-1,-1]
[null,null,null,null,null,null,null,null,null,null,"1 Tag",{"$f":"COUNTIF(C4:C11,K16)","v":0},{"$f":"COUNTIF(C4:C8,K16)","v":0},{"$f":"COUNTIF(C173:C213,K16)","v":0}]
[null,null,null,null,null,null,null,null,null,null,"2 Tage",{"$f":"COUNTIF(C4:C11,K17)","v":0},{"$f":"COUNTIF(C4:C8,K17)","v":0},{"$f":"COUNTIF(C173:C213,K17)","v":0}]
[null,null,null,null,null,null,null,null,null,null,"3 Tage",{"$f":"COUNTIF(C4:C11,K18)","v":0},{"$f":"COUNTIF(C4:C8,K18)","v":0},{"$f":"COUNTIF(C173:C213,K18)","v":0}]
[null,null,null,null,null,null,null,null,null,null,"4 Tage",{"$f":"COUNTIF(C4:C11,K19)","v":0},{"$f":"COUNTIF(C4:C8,K19)","v":0},{"$f":"COUNTIF(C173:C213,K19)","v":0}]
[null,null,null,null,null,null,null,null,null,null,"5 Tage",{"$f":"COUNTIF(C4:C11,K20)","v":0},{"$f":"COUNTIF(C4:C8,K20)","v":0},{"$f":"COUNTIF(C173:C213,K20)","v":0}]
[null,null,null,null,null,null,null,null,null,null,"6 Tage",{"$f":"COUNTIF(C4:C11,K21)","v":0},{"$f":"COUNTIF(C4:C8,K21)","v":0},{"$f":"COUNTIF(C173:C213,K21)","v":0}]
[null,null,null,null,null,null,null,null,null,null,"7 Tage",{"$f":"COUNTIF(C4:C11,K22)","v":0},{"$f":"COUNTIF(C4:C8,K22)","v":0},{"$f":"COUNTIF(C173:C213,K22)","v":0}]
[null,null,null,null,null,null,null,null,null,null,"8 bis 14 Tage",{"$f":"COUNTIF(C4:C11,K23)","v":0},{"$f":"COUNTIF(C4:C8,K23)","v":0},{"$f":"COUNTIF(C173:C213,K23)","v":0}]
[null,null,null,null,null,null,null,null,null,null,"15 bis 30 Tage",{"$f":"COUNTIF(C4:C11,K24)","v":0},{"$f":"COUNTIF(C4:C8,K24)","v":0},{"$f":"COUNTIF(C173:C213,K24)","v":0}]
[null,null,null,null,null,null,null,null,null,null,"31-42 Tage",{"$f":"COUNTIF(C4:C11,K25)","v":0},{"$f":"COUNTIF(C4:C8,K25)","v":0},{"$f":"COUNTIF(C173:C213,K25)","v":0}]
[null,null,null,null,null,null,null,null,null,null,"über 6 Wochen",{"$f":"COUNTIF(C4:C11,K26)","v":0},{"$f":"COUNTIF(C4:C8,K26)","v":0},{"$f":"COUNTIF(C173:C213,K26)","v":0}]
[null,null,null,null,null,null,null,null,null,null,null,{"$f":"SUM(L16:L26)","v":0},{"$f":"SUM(M16:M26)","v":0},{"$f":"SUM(N16:N26)","v":0},{"$f":"SUMIF(L15:N15,\">0\",L27:N27)","v":0}]
[]
[]
[]
[null,null,null,null,null,null,null,null,null,null,null,2018,-1,-1]
[null,null,null,null,null,null,null,null,null,null,"Verwaltung",{"$f":"COUNTIF(D4:D12,K32)","v":0},{"$f":"COUNTIF(D4:D8,K32)","v":0},{"$f":"COUNTIF(D173:D213,K32)","v":0}]
[null,null,null,null,null,null,null,null,null,null,"Bauhof",{"$f":"COUNTIF(D4:D12,K33)","v":0},{"$f":"COUNTIF(D4:D8,K33)","v":0},{"$f":"COUNTIF(D173:D213,K33)","v":0}]
[null,null,null,null,null,null,null,null,null,null,"Fuhrpark",{"$f":"COUNTIF(D4:D12,K34)","v":0},{"$f":"COUNTIF(D4:D8,K34)","v":0},{"$f":"COUNTIF(D173:D213,K34)","v":0}]
[null,null,null,null,null,null,null,null,null,null,"Baustelle",{"$f":"COUNTIF(D4:D12,K35)","v":0},{"$f":"COUNTIF(D4:D8,K35)","v":0},{"$f":"COUNTIF(D173:D213,K35)","v":0}]
[null,null,null,null,null,null,null,null,null,null,"Lager",{"$f":"COUNTIF(D4:D12,K36)","v":0},{"$f":"COUNTIF(D4:D8,K36)","v":0},{"$f":"COUNTIF(D173:D213,K36)","v":0}]
[null,null,null,null,null,null,null,null,null,null,"Objekt",{"$f":"COUNTIF(D4:D12,K37)","v":0},{"$f":"COUNTIF(D4:D8,K37)","v":0},{"$f":"COUNTIF(D173:D213,K37)","v":0}]
[null,null,null,null,null,null,null,null,null,null,null,{"$f":"SUM(L32:L37)","v":0},{"$f":"SUM(M32:M37)","v":0},{"$f":"SUM(N32:N37)","v":0},{"$f":"SUMIF(L31:N31,\">0\",L38:N38)","v":0}]